[Event "Budapest Chess Festival 2024"]
[Site "Budapest"]
[Date "2024.05.26"]
[Round "4.19"]
[White "Emanuel, Yahav"]
[Black "Mihok, Oliver"]
[Result "0-1"]
[ECO "B28"]
[WhiteElo "2317"]
[BlackElo "2528"]
[Annotator "TA"]
[PlyCount "96"]
[EventDate "2024.05.20"]
[EventType "swiss"]
[EventCountry "HUN"]
[SourceTitle "playchess.com"]
[Source "ChessBase"]
[SourceQuality "1"]
[TimeControl "40/5400+30:1800+30"]

{[%evp 10,96,29,22,38,20,18,4,24,6,0,0,3,0,39,22,12,18,30,20,21,15,18,8,85,83,78,10,16,26,26,23,23,0,0,0,0,0,0,0,0,0,0,0,0,0,0,0,0,0,0,0,0,-13,-8,-13,-8,-18,-19,-19,-25,-201,-200,-201,-184,-136,-145,-439,-384,-365,-363,-798,-884,-1338,-1164,-7262,-3826,-5752,-5325,-2383,-1933,-29974,-29975,-29987,-29985,-29988,-29988,-29988,-29989]} 1. e4 {[%emt 0:00:43]} c5 {[%emt 0:00:39]} 2. Nf3 {[%emt 0:00:07]} a6 {[%emt 0:00:23]} 3. c3 {[%emt 0:01:22]} d5 {[%emt 0:00:06]} 4. exd5 {[%emt 0:00:09]} Qxd5 {[%emt 0:00:05]} 5. d4 {[%emt 0:00:22]} e6 {[%emt 0:00:08]} 6. Be3 {[%emt 0:01:03]} Nd7 {[%emt 0:00:28]} 7. c4 {[%emt 0:04:07]} Qc6 {[%emt 0:00:27]} 8. Nc3 {[%emt 0:02:28]} Ngf6 {[%emt 0:00:39] The position is equal.} 9. Be2 {[%emt 0:09:55]} b6 {[%emt 0:00:53]} 10. Ne5 {[%emt 0:04:23]} Qc7 {[%emt 0:00:16]} 11. Bf3 $36 {[%emt 0:04:21][%mdl 2048] White has some pressure.} cxd4 {[%emt 0:06:56]} 12. Bxd4 {[%emt 0:05:35] [#] Hoping for Nxd7.} ({Much weaker is} 12. Bxa8 dxe3 (12... Qxe5 $2 13. Qxd4 Qb8 14. Bc6 $18) 13. Nd3 exf2+ (13... Qxc4 14. fxe3 a5 15. Rc1 $11) 14. Nxf2 Bd6 $17 (14... Qxc4 15. Rc1 $15)) 12... Bb7 {[%emt 0:04:57]} 13. Nxd7 {[%emt 0:05:18]} Nxd7 {[%emt 0:05:40]} 14. O-O {[%emt 0:02:04]} Bc5 {[%emt 0:05:09]} 15. Bxb7 {[%emt 0:12:25]} ({Of course not} 15. Bxg7 Rg8 16. Bh6 Ne5 17. Bxb7 Qxb7 $17) 15... Qxb7 {[%emt 0:00:09]} 16. Bxc5 {[%emt 0:00:09]} (16. Bxg7 $2 {perishes.} Rg8 17. Qg4 O-O-O $19 (17... Bf8 $2 18. Ne4 $19)) 16... bxc5 {[%emt 0:05:40]} (16... Nxc5 $11 {remains equal.} 17. Qd4 O-O) 17. Qd6 {[%emt 0:00:43]} Qb6 {[%emt 0:06:45]} 18. Rfd1 {[%emt 0:02:17]} (18. Qg3 $16 {And now Rad1 would win.} O-O 19. b3) 18... Qxd6 $11 {[%emt 0:02:09]} 19. Rxd6 {[%emt 0:00:01]} Ne5 {[%emt 0:08:35]} 20. b3 {[%emt 0:07:53] Threatens to win with Rad1.} Ke7 {[%emt 0:03:25]} 21. Rad1 {[%emt 0:00:51] Black must now prevent f4.} Rhd8 {[%emt 0:00:39]} 22. Rxd8 {[%emt 0:03:23]} Rxd8 {[%emt 0:00:06]} 23. Rxd8 {[%emt 0:00:14]} Kxd8 {[%emt 0:00:05][%mdl 4096] Endgame. KN-KN} 24. Na4 {[%emt 0:03:11]} Nd7 {[%emt 0:04:27]} 25. f4 {[%emt 0:01:50]} Kc7 {[%emt 0:03:18]} 26. Kf2 {[%emt 0:02:30]} Kd6 {[%emt 0:04:18]} 27. Ke3 {[%emt 0:03:48]} Nb8 {[%emt 0:04:23]} 28. Nc3 {[%emt 0:09:05]} f5 {[%emt 0:01:30] Wards off Ne4+} 29. Ne2 {[%emt 0:02:19]} Nc6 {[%emt 0:02:32]} 30. h3 {[%emt 0:02:13]} e5 {[%emt 0:06:03]} 31. g4 {[%emt 0:05:15]} g6 {[%emt 0:04:19]} 32. gxf5 {[%emt 0:02:32]} gxf5 {[%emt 0:00:05]} 33. Ng3 {[%emt 0:01:10]} Nd4 {[%emt 0:01:09]} 34. h4 $1 {[%emt 0:02:35]} a5 {[%emt 0:01:14]} 35. Nf1 $2 {[%emt 0:00:32] [#]} (35. Nh5 $1 $11 {and White is okay.}) 35... Ne6 $1 $19 {[%emt 0:01:19]} 36. fxe5+ {[%emt 0:00:22]} Kxe5 {[%emt 0:00:03]} 37. Nd2 {[%emt 0:01:07]} Nd4 {[%emt 0:01:19]} 38. a3 $2 {[%emt 0:00:26][%mdl 8192] Loses the game.} (38. Nb1 $17 {might work better.}) 38... f4+ {[%emt 0:06:50]} 39. Kd3 {[%emt 0:00:01]} h5 {[%emt 0:00:19]} 40. b4 $2 {[%emt 0:00:00]} (40. Kc3 Nc6 (40... Nf5 $2 41. b4 $19) 41. Kd3) 40... cxb4 {[%emt 0:00:00]} 41. axb4 {[%emt 0:03:07]} axb4 {[%emt 0:04:23]} 42. c5 {[%emt 0:00:15]} Kd5 {[%emt 0:04:24]} 43. Ne4 {[%emt 0:00:13]} b3 {[%emt 0:03:13]} 44. c6 {[%emt 0:21:27]} Nxc6 {[%emt 0:02:31] ( -> ...Ne5+)} 45. Nf6+ {[%emt 0:00:12]} Ke5 {[%emt 0:01:02] Black mates.} 46. Nxh5 {[%emt 0:00:04]} Nd4 {[%emt 0:00:43]} 47. Kc3 {[%emt 0:00:32]} Ne2+ {[%emt 0:00:21]} 48. Kxb3 {[%emt 0:00:07]} f3 {[%emt 0:00:06] Weighted Error Value: White=0.68/Black=0.18 (very precise) .  Loses game:     	White=2     	---        Mistake:       	White=2     	Black=1      Inaccurate:     	White=1     	Black=1      OK:         	White=10    	Black=17     Best:        	---       	Black=4      Strong:       	White=1     	Black=1} 0-1

[Event "Budapest Chess Festival 2024"]
[Site "Budapest"]
[Date "2024.05.26"]
[Round "4.20"]
[White "Csonka, Balazs"]
[Black "Ongut, Tamas Gunes"]
[Result "1-0"]
[ECO "C28"]
[WhiteElo "2480"]
[BlackElo "2313"]
[Annotator "TA"]
[PlyCount "79"]
[EventDate "2024.05.20"]
[EventType "swiss"]
[EventCountry "HUN"]
[SourceTitle "playchess.com"]
[Source "ChessBase"]
[SourceQuality "1"]
[TimeControl "40/5400+30:1800+30"]

{[%evp 12,79,10,10,3,0,15,14,26,0,0,0,25,25,53,49,43,33,17,28,19,43,66,74,95,101,95,93,107,105,136,127,165,160,154,156,277,215,270,280,272,272,278,241,295,259,235,254,268,268,357,308,353,372,401,311,610,638,640,640,641,621,641,644,691,683,679,564,622,614]} 1. e4 {[%emt 0:00:33]} e5 {[%emt 0:06:43]} 2. Bc4 {[%emt 0:00:09]} Nc6 {[%emt 0:00:19]} 3. Nc3 {[%emt 0:00:27]} Nf6 {[%emt 0:00:44]} 4. d3 {[%emt 0:00:08]} Na5 {[%emt 0:06:36]} 5. Bb3 {[%emt 0:00:58]} Nxb3 {[%emt 0:04:01]} 6. axb3 {[%emt 0:00:09]} d5 {[%emt 0:00:05]} 7. exd5 {[%emt 0:01:54]} Nxd5 {[%emt 0:00:09]} 8. Qh5 {[%emt 0:00:16]} Nb4 {[%emt 0:09:27]} 9. Qxe5+ {[%emt 0:00:25]} Be7 {[%emt 0:00:07] The position is equal.} 10. Qe2 {[%emt 0:00:46]} O-O {[%emt 0:00:20]} 11. Qd1 {[%emt 0:00:07]} Bg4 {[%emt 0:11:36]} 12. Nge2 {[%emt 0:03:01]} Bd6 {[%emt 0:07:30]} 13. f3 {[%emt 0:33:02]} Bf5 {[%emt 0:22:35]} 14. Be3 {[%emt 0:12:41] Inhibits Bc5.} Re8 {[%emt 0:02:01]} 15. Bf2 {[%emt 0:00:14]} Qf6 {[%emt 0:06:33]} 16. O-O {[%emt 0:05:32]} Rad8 {[%emt 0:03:20][%cal Ob4c2]} 17. Ng3 $1 {[%emt 0:09:17] Black is now going downhill.} Qh6 {[%emt 0:05:05][%cal Ob4c2]} 18. Nce4 {[%emt 0:11:18]} (18. Nxf5 $2 Qxh2#) 18... Bf4 {[%emt 0:05:30] [#]} 19. Rxa7 $1 {[%emt 0:06:44]} Bc8 {[%emt 0:00:19]} 20. Nc3 {[%emt 0:01:54][%cal Be4c3,Bc3d5,Bd5c7,Bc7b5][%mdl 32]} Be3 {[%emt 0:03:26]} 21. Ra1 {[%emt 0:02:11]} Bf4 {[%emt 0:01:47]} 22. Ra4 {[%emt 0:01:43]} Nc6 {[%emt 0:00:26]} 23. Re1 {[%emt 0:01:10]} Bd2 {[%emt 0:02:15]} (23... Rxe1+ $16 24. Qxe1 Bd6) 24. Rxe8+ $18 {[%emt 0:01:03]} Rxe8 {[%emt 0:00:06]} 25. Nd5 {[%emt 0:03:12]} Rd8 {[%emt 0:00:21]} 26. Nxc7 {[%emt 0:01:34]} Be3 {[%emt 0:00:19]} 27. Nb5 {[%emt 0:02:19]} f5 {[%emt 0:01:01][%cal Bf7f5,Bf5f4][%mdl 32]} 28. Ra1 {[%emt 0:01:01]} Bxf2+ {[%emt 0:00:59]} 29. Kxf2 {[%emt 0:00:01][%cal Bg1f2,Bf2f1,Bf1e2,Be2d1,Bd1d2][%mdl 32]} f4 {[%emt 0:00:07]} 30. Ne4 {[%emt 0:00:27]} Ne5 {[%emt 0:00:31]} 31. Nbc3 {[%emt 0:00:35]} Qb6+ {[%emt 0:00:56]} 32. Kf1 {[%emt 0:00:18]} Bf5 {[%emt 0:00:44]} 33. Qe1 {[%emt 0:00:57]} Nxf3 $2 {[%emt 0:00:07] [#]} (33... Nc6 34. Qf2 Qxf2+ 35. Kxf2 Nb4) 34. gxf3 {[%emt 0:00:17] White is clearly winning.} Bh3+ {[%emt 0:00:21]} 35. Ke2 {[%emt 0:00:03]} Qe3+ {[%emt 0:00:05]} 36. Kd1 {[%emt 0:00:04]} Qxf3+ {[%emt 0:00:09]} 37. Kd2 {[%emt 0:00:54]} Bf5 {[%emt 0:00:42]} 38. Qe2 {[%emt 0:00:34]} Qh3 {[%emt 0:00:41]} 39. Rf1 {[%emt 0:00:27]} Bg4 {[%emt 0:00:22]} 40. Qf2 {[%emt 0:00:00] Weighted Error Value: White=0.15 (very precise) /Black=0.35.  Mistake:       	---       	Black=2      Inaccurate:     	White=1     	Black=2      OK:         	White=11    	Black=9      Best:        	White=3     	---        Strong:       	White=2     	---} 1-0

[Event "Budapest Chess Festival 2024"]
[Site "Budapest"]
[Date "2024.05.27"]
[Round "5.1"]
[White "Onyshchuk, Volodymyr"]
[Black "Kantor, Gergely"]
[Result "1/2-1/2"]
[ECO "C88"]
[WhiteElo "2619"]
[BlackElo "2527"]
[Annotator "TA"]
[PlyCount "31"]
[EventDate "2024.05.20"]
[EventType "swiss"]
[EventCountry "HUN"]
[SourceTitle "playchess.com"]
[Source "ChessBase"]
[SourceQuality "1"]
[TimeControl "40/5400+30:1800+30"]

{[%evp 16,31,26,24,24,30,22,8,14,24,21,0,11,0,0,0,0,0]} 1. e4 {[%emt 0:00:40]} e5 {[%emt 0:05:36]} 2. Nf3 {[%emt 0:00:35]} Nc6 {[%emt 0:00:03]} 3. Bb5 {[%emt 0:00:48]} a6 {[%emt 0:00:14]} 4. Ba4 {[%emt 0:00:07]} Nf6 {[%emt 0:00:03]} 5. O-O {[%emt 0:00:22]} Be7 {[%emt 0:00:06]} 6. Re1 {[%emt 0:00:33]} b5 {[%emt 0:00:05]} 7. Bb3 {[%emt 0:00:03]} O-O {[%emt 0:00:04]} 8. h3 {[%emt 0:00:37]} Bb7 {[%emt 0:01:56]} 9. d3 {[%emt 0:00:38]} d5 {[%emt 0:02:08]} 10. exd5 {[%emt 0:12:17]} Nxd5 {[%emt 0:00:10]} 11. Nbd2 {[%emt 0:00:10][%cal Bb1d2,Bd2e4,Be4g5][%mdl 32]} Nd4 {[%emt 0:08:39]} 12. Rxe5 {[%emt 0:06:51]} Nxb3 {[%emt 0:05:41]} 13. axb3 {[%emt 0:02:46] The position is equal.} Nb4 {[%emt 0:08:18]} 14. Re1 {[%emt 0:05:15]} c5 {[%emt 0:04:26]} 15. Ne4 {[%emt 0:07:43]} f5 {[%emt 0:11:20]} 16. Neg5 {[%emt 0:06:40] Not much happened in this game.   Weighted Error Value: White=0.05 (flawless) /Black=0.02 (flawless) .  OK:         	White=2     	Black=4      Best:        	White=1     	---} 1/2-1/2

[Event "Budapest Chess Festival 2024"]
[Site "Budapest"]
[Date "2024.05.27"]
[Round "5.2"]
[White "Costa, Leonardo"]
[Black "Dragnev, Valentin"]
[Result "1/2-1/2"]
[ECO "B11"]
[WhiteElo "2486"]
[BlackElo "2566"]
[Annotator "TA"]
[PlyCount "111"]
[EventDate "2024.05.20"]
[EventType "swiss"]
[EventCountry "HUN"]
[SourceTitle "playchess.com"]
[Source "ChessBase"]
[SourceQuality "1"]
[TimeControl "40/5400+30:1800+30"]

{[%evp 34,111,19,0,11,10,14,14,44,33,29,0,28,20,14,19,14,0,37,42,34,39,35,44,29,7,11,10,10,8,9,-4,0,0,-2,0,-4,-3,0,-25,-26,-26,-26,-58,-33,-26,-26,-26,-26,-29,-29,-31,-31,-31,-8,-8,0,0,0,0,0,-8,0,-1,0,0,0,-1,0,0,0,0,0,0,0,0,69,0,0,0]} 1. e4 {[%emt 0:01:40]} c6 {[%emt 0:00:36]} 2. Nc3 {[%emt 0:00:08]} d5 {[%emt 0:00:09]} 3. Nf3 {[%emt 0:00:04]} Bg4 {[%emt 0:00:17]} 4. h3 {[%emt 0:00:04]} Bxf3 {[%emt 0:00:07]} 5. Qxf3 {[%emt 0:00:04]} e6 {[%emt 0:00:11]} 6. Be2 {[%emt 0:00:03]} Nf6 {[%emt 0:00:51] B11: Caro-Kann: Two Knights Variation.} 7. O-O {[%emt 0:00:07]} d4 {[%emt 0:00:35]} 8. Nb1 {[%emt 0:01:27]} Bd6 {[%emt 0:00:08]} 9. d3 {[%emt 0:02:12]} Bc7 {[%emt 0:00:06]} 10. h4 {[%emt 0:10:07]} c5 {[%emt 0:01:36]} 11. Nd2 {[%emt 0:01:54]} Nc6 {[%emt 0:00:30]} 12. Qh3 {[%emt 0:04:53]} e5 $146 {[%emt 0:03:14]} ({Predecessor:} 12... Qe7 13. a3 h6 14. f4 e5 15. g3 Nd7 16. Bg4 h5 17. Bxd7+ Qxd7 18. Qxd7+ Kxd7 19. Nf3 f6 {½-½ Milde,L (2255)-Mallmann,B (2315) EU-ch 2022 sf02 email}) 13. h5 {[%emt 0:01:27]} Qd7 {[%emt 0:07:07]} 14. Qxd7+ {[%emt 0:03:03]} Kxd7 {[%emt 0:02:07]} 15. g3 {[%emt 0:01:30]} g6 {[%emt 0:14:30]} 16. h6 {[%emt 0:06:47]} Ke7 {[%emt 0:02:25]} 17. Nf3 {[%emt 0:06:16]} Nd7 {[%emt 0:02:48]} 18. c3 {[%emt 0:03:55]} Rhc8 {[%emt 0:04:52]} 19. Bd2 {[%emt 0:01:32]} dxc3 {[%emt 0:07:52]} 20. bxc3 {[%emt 0:00:40]} b5 {[%emt 0:02:08]} 21. Rab1 {[%emt 0:06:24]} Rab8 {[%emt 0:01:29]} 22. d4 {[%emt 0:08:50]} exd4 {[%emt 0:02:48]} 23. Bxb5 {[%emt 0:01:50]} Nde5 {[%emt 0:01:25]} 24. Nxe5 {[%emt 0:08:44]} Bxe5 {[%emt 0:07:13]} 25. Bxc6 {[%emt 0:01:41]} dxc3 {[%emt 0:07:44]} 26. Rxb8 {[%emt 0:12:35]} Bxb8 {[%emt 0:00:20]} 27. Bb7 {[%emt 0:00:57]} Rc7 $1 {[%emt 0:00:05]} 28. Bg5+ {[%emt 0:00:57]} f6 {[%emt 0:00:06]} 29. Bd5 {[%emt 0:00:15]} (29. Bxf6+ $5 Kxf6 30. Bd5 $14) 29... fxg5 {[%emt 0:00:07]} 30. Rc1 {[%emt 0:00:01]} Rc8 {[%emt 0:01:24]} 31. Rxc3 {[%emt 0:00:05]} Be5 {[%emt 0:00:10]} 32. Rc4 {[%emt 0:03:02]} g4 {[%emt 0:01:42]} 33. Ra4 $1 {[%emt 0:00:19]} Kf6 {[%emt 0:02:05]} 34. Rxa7 {[%emt 0:02:09]} c4 {[%emt 0:02:04]} 35. Ra6+ {[%emt 0:00:04]} Kg5 {[%emt 0:00:13]} 36. Rc6 {[%emt 0:00:03]} Rxc6 {[%emt 0:00:46]} 37. Bxc6 {[%emt 0:00:04]} Kxh6 {[%emt 0:00:40]} (37... c3 $5 38. Ba4 $8 Kxh6 $17) 38. Kg2 {[%emt 0:04:28]} Kg5 {[%emt 0:00:28]} 39. Bb5 {[%emt 0:00:20]} c3 {[%emt 0:00:08]} 40. Bd3 {[%emt 0:00:00]} Kf6 {[%emt 0:00:00]} 41. f4 {[%emt 0:12:35]} gxf3+ {[%emt 0:02:48]} 42. Kxf3 {[%emt 0:00:04]} h5 {[%emt 0:00:32]} 43. a4 {[%emt 0:00:13]} Bc7 {[%emt 0:04:37]} 44. e5+ $1 {[%emt 0:00:04]} Bxe5 {[%emt 0:00:45]} 45. a5 {[%emt 0:00:02]} g5 {[%emt 0:00:50]} 46. a6 {[%emt 0:00:04]} Bb8 {[%emt 0:00:39]} 47. Ke4 {[%emt 0:00:26]} g4 {[%emt 0:00:58]} (47... Bxg3 48. a7 g4 49. a8=Q $18 (49. a8=B h4 $11)) 48. Bc2 {[%emt 0:01:22]} Ba7 {[%emt 0:00:25]} (48... Bxg3 49. a7 Kg5 50. a8=Q (50. a8=B h4 $11) 50... Bc7 51. Qb7 Bd8 52. Qg7+ Kh4 53. Kf4 (53. Qxc3 Kg5 54. Qe5+ Kh4 55. Kf4 Bg5+ 56. Qxg5+ Kh3 57. Qxh5+ Kg2 58. Qxg4+ Kf2 59. Bd3 Ke1 60. Qe2#)) 49. Bb3 {[%emt 0:02:14]} Bb6 {[%emt 0:00:56]} 50. Ba4 {[%emt 0:00:28]} Ke6 {[%emt 0:00:47]} 51. Kf4 {[%emt 0:00:04]} Kd5 {[%emt 0:01:57]} 52. Kg5 {[%emt 0:00:06]} Ke4 {[%emt 0:00:19]} 53. Kxh5 {[%emt 0:00:02]} Kf3 {[%emt 0:00:20]} 54. Kh4 $1 {[%emt 0:00:03]} Bd8+ {[%emt 0:00:14]} 55. Kh5 {[%emt 0:00:04]} Bb6 $1 {[%emt 0:00:06]} 56. Kh4 {[%emt 0:00:02]} 1/2-1/2

[Event "Budapest Chess Festival 2024"]
[Site "Budapest"]
[Date "2024.05.27"]
[Round "5.4"]
[White "Nasuta, Grzegorz"]
[Black "Gschnitzer, Adrian"]
[Result "1-0"]
[ECO "B51"]
[WhiteElo "2547"]
[BlackElo "2431"]
[Annotator "TA"]
[PlyCount "49"]
[EventDate "2024.05.20"]
[EventType "swiss"]
[EventCountry "HUN"]
[SourceTitle "playchess.com"]
[Source "ChessBase"]
[SourceQuality "1"]
[TimeControl "40/5400+30:1800+30"]

{[%evp 9,49,13,22,6,39,10,35,29,39,33,54,42,54,50,77,86,98,91,121,127,129,111,175,161,176,166,183,170,189,180,180,165,327,331,313,310,300,300,284,260,265,257]} 1. e4 {[%emt 0:00:33]} c5 {[%emt 0:00:37]} 2. Nf3 {[%emt 0:00:05]} d6 {[%emt 0:00:07]} 3. Bb5+ {[%emt 0:00:39]} Nd7 {[%emt 0:00:10]} 4. O-O {[%emt 0:00:24]} a6 {[%emt 0:00:48]} 5. Be2 {[%emt 0:00:20]} Ngf6 {[%emt 0:02:13]} 6. d3 {[%emt 0:00:28]} g6 {[%emt 0:04:51]} 7. c4 {[%emt 0:01:17]} Bg7 {[%emt 0:05:02]} 8. Nc3 {[%emt 0:00:46] White is slightly better.} O-O {[%emt 0:00:14]} 9. d4 {[%emt 0:00:50]} cxd4 {[%emt 0:01:32]} 10. Nxd4 {[%emt 0:00:07]} Nc5 {[%emt 0:03:11]} 11. f3 {[%emt 0:01:08]} a5 {[%emt 0:09:31]} 12. Be3 {[%emt 0:04:55]} Nfd7 {[%emt 0:13:29]} 13. Qd2 {[%emt 0:03:02]} f5 {[%emt 0:10:07]} 14. exf5 {[%emt 0:24:19]} gxf5 {[%emt 0:00:28]} 15. Ndb5 {[%emt 0:01:20]} Ne5 {[%emt 0:04:14]} (15... Rb8 $16 {keeps fighting.} 16. Rad1 Kh8) 16. Rad1 $18 {[%emt 0:02:00] [#] Bxc5 would now be deadly.} Be6 {[%emt 0:04:55]} 17. b3 {[%emt 0:07:44]} a4 {[%emt 0:02:31]} 18. Bxc5 {[%emt 0:10:43]} dxc5 {[%emt 0:00:25]} 19. Qxd8 {[%emt 0:00:25]} (19. bxa4 Qxd2 (19... Bxc4 $2 {perishes.} 20. Qf4 $18) (19... Nxc4 20. Qg5 $14) 20. Rxd2 Nxc4 $17 (20... Bxc4 21. Bxc4+ Nxc4 22. Rd7 $11)) 19... Raxd8 {[%emt 0:06:49]} 20. Nxa4 {[%emt 0:00:14]} ({Inferior is} 20. bxa4 Bxc4 21. Rxd8 Rxd8 $17) 20... Rc8 $2 {[%emt 0:02:10] [#]} (20... Nc6 {is a better defense.} 21. Nxc5 Bc8 22. Rxd8 Rxd8) 21. f4 {[%emt 0:12:39] White has a decisive advantage.} Nf7 {[%emt 0:14:08]} 22. Bf3 {[%emt 0:03:42]} Nd6 {[%emt 0:02:03]} 23. Nxd6 {[%emt 0:03:38]} exd6 {[%emt 0:00:11]} 24. Rxd6 {[%emt 0:00:04]} Bd4+ {[%emt 0:00:26]} 25. Kh1 {[%emt 0:00:06] Weighted Error Value: White=0.02 (flawless) /Black=0.26 (precise) .  Mistake:       	---       	Black=2      Inaccurate:     	---       	Black=3      OK:         	White=13    	Black=3      Best:        	White=1     	---} 1-0

[Event "Budapest Chess Festival 2024"]
[Site "Budapest"]
[Date "2024.05.27"]
[Round "5.5"]
[White "Sokolovsky, Yahli"]
[Black "Samunenkov, Ihor"]
[Result "1/2-1/2"]
[ECO "C42"]
[WhiteElo "2484"]
[BlackElo "2547"]
[Annotator "TA"]
[PlyCount "93"]
[EventDate "2024.05.20"]
[EventType "swiss"]
[EventCountry "HUN"]
[SourceTitle "playchess.com"]
[Source "ChessBase"]
[SourceQuality "1"]
[TimeControl "40/5400+30:1800+30"]

{[%evp 13,93,13,14,21,20,25,13,20,8,6,19,0,32,14,26,18,50,22,32,14,43,42,45,52,73,35,47,0,74,69,66,73,74,94,115,72,137,133,148,123,157,146,187,106,108,98,98,98,109,83,89,99,131,109,120,107,93,108,112,111,110,8,8,20,25,44,39,0,0,0,0,0,0,0,0,0,0,0,0,0,0,0]} 1. e4 {[%emt 0:00:33]} e5 {[%emt 0:00:44]} 2. Nf3 {[%emt 0:00:05]} Nf6 {[%emt 0:00:09]} 3. Nxe5 {[%emt 0:00:03]} d6 {[%emt 0:00:08]} 4. Nf3 {[%emt 0:00:03]} Nxe4 {[%emt 0:00:08]} 5. Nc3 {[%emt 0:00:04]} Nxc3 {[%emt 0:00:09]} 6. dxc3 {[%emt 0:00:02]} Be7 {[%emt 0:00:11]} 7. Be3 {[%emt 0:00:05]} O-O {[%emt 0:00:22]} 8. Qd2 {[%emt 0:00:04]} Nd7 {[%emt 0:00:07]} 9. O-O-O {[%emt 0:00:06]} Nf6 {[%emt 0:00:07]} 10. Bd3 {[%emt 0:00:08]} Re8 {[%emt 0:00:08]} 11. Rhe1 {[%emt 0:00:12]} Bg4 {[%emt 0:00:28]} 12. Bg5 {[%emt 0:00:14]} Qd7 {[%emt 0:02:26]} 13. h3 {[%emt 0:00:15]} Bf5 {[%emt 0:03:38]} 14. g4 {[%emt 0:00:07]} Bg6 {[%emt 0:16:46]} 15. Kb1 {[%emt 0:12:02]} a6 {[%emt 0:07:16]} 16. Re2 {[%emt 0:02:36]} b5 {[%emt 0:11:07]} 17. Qe1 {[%emt 0:07:02]} Bf8 {[%emt 0:22:18]} 18. Bxf6 {[%emt 0:06:33] aiming for Bxg6.} gxf6 {[%emt 0:00:11]} 19. Be4 {[%emt 0:11:43]} Qe7 {[%emt 0:06:20]} 20. Bd3 {[%emt 0:09:43]} (20. Nd2 $5 d5 21. Bf3 $14) 20... Qd7 {[%emt 0:00:12]} 21. Nd4 {[%emt 0:10:05][%cal Bf3d4,Bd4f5,Bf5e3][%mdl 32]} Rxe2 {[%emt 0:04:37]} 22. Qxe2 {[%emt 0:00:31]} Re8 {[%emt 0:05:57]} 23. Qf3 {[%emt 0:00:01]} c5 {[%emt 0:01:12]} 24. Nf5 {[%emt 0:03:49]} Re5 {[%emt 0:04:08]} (24... Bxf5 $142 25. Bxf5 Qe7) 25. Ne3 $16 {[%emt 0:01:08]} Bxd3 {[%emt 0:04:06]} 26. Rxd3 {[%emt 0:06:25][%cal Oa2a3]} Qe6 {[%emt 0:02:40]} 27. Qa8 {[%emt 0:02:20]} Re4 {[%emt 0:02:50] [#] Prevents a3.} 28. Rxd6 {[%emt 0:12:00]} Qxd6 {[%emt 0:03:10]} 29. Qxe4 $18 {[%emt 0:00:01][%mdl 4096] Endgame. KQB-KQN} Qd2 {[%emt 0:00:12] ( -> ...Qe1+)} 30. a3 {[%emt 0:02:02]} Qxf2 {[%emt 0:00:15]} 31. Ka2 {[%emt 0:03:14]} (31. Nd5 {looks sharper.} c4 32. a4 Kg7 33. Nf4) 31... Qg3 {[%emt 0:01:49]} 32. Nd5 {[%emt 0:00:57]} Qd6 {[%emt 0:00:14]} 33. Qf3 {[%emt 0:05:29] White is much more active.} Qe6 {[%emt 0:01:28]} 34. b3 {[%emt 0:00:21]} Kg7 {[%emt 0:01:24]} 35. Nf4 {[%emt 0:01:07]} Qe5 {[%emt 0:00:23] [#]} 36. Nh5+ $1 {[%emt 0:00:06]} Kg6 {[%emt 0:00:18]} 37. Qd3+ {[%emt 0:02:43]} (37. Ng3 $16) 37... f5 $11 {[%emt 0:00:17]} 38. Ng3 {[%emt 0:00:57][%cal Rg3f5]} c4 $1 {[%emt 0:00:34]} 39. gxf5+ {[%emt 0:00:58]} Kg7 {[%emt 0:00:58]} 40. Qf3 {[%emt 0:00:00]} cxb3+ {[%emt 0:00:00] The position is equal.} 41. cxb3 {[%emt 0:02:52]} Bd6 {[%emt 0:12:23]} 42. f6+ {[%emt 0:13:00]} Kg6 $1 {[%emt 0:06:25]} 43. Ne4 {[%emt 0:01:40]} h5 {[%emt 0:02:09] Prevents Qg4+} 44. Qg2+ {[%emt 0:02:59]} Kf5 {[%emt 0:00:46]} 45. Qf3+ {[%emt 0:00:06]} Kg6 {[%emt 0:01:41]} 46. Qg2+ {[%emt 0:05:35]} Kf5 {[%emt 0:00:21]} 47. Qf3+ {[%emt 0:00:11] Blacks defense is rewarded with a draw.   Weighted Error Value: White=0.15 (very precise) /Black=0.10 (very precise) .  Mistake:       	White=2     	Black=1      Inaccurate:     	White=4     	Black=4      OK:         	White=12    	Black=14     Best:        	White=2     	Black=6      Strong:       	White=1     	Black=2} 1/2-1/2